Workbook

Sheet Fadenpendel
A1: Federschwerependel
A3: Startwerte:
A4: s0 = | B4: =x0a/100 -> 0.1 | C4: 10
A5: v0 = | B5: =v0a/100 -> 0 | C5: 0
A6: Richtgröße D = | B6: 6.9 | C6: 69
A7: Masse m = | B7: 0.15 | C7: 15
C8: Ttheor = | D8: =2*PI()*SQRT(m/D) -> 0.9264051326
A9: Dämpfung r = | B9: =ra/10 -> 0.5 | C9: 5
A10: Zeitschritt = | B10: =Delta_t_a/1000 -> 0.005 | C10: 5
A11: Startzeit = | B11: 0
A12: Endzeit = | B12: =t0+5000*Delta_t -> 25
C14: Anzahl der Extrema:
D15: =COUNT(C21:C520) -> 0
C16: Mittelwert Tsim :
C17: =IF(A21<>"",AVERAGE(C21:C120),"") ->  | D17: =IF(A22<>"",AVERAGE(D22:D120),"") -> 
C19: Abstände der Extrema:
C20: einfach | D20: doppelt
C21: =IF(A21<>0,A21,"") ->  | D21: =IF(A21<>0,2*C21,"") -> 
C22: =IF(A22<>0,A22-A21,"") ->  | D22: =IF(A22<>0,2*C22,"") -> 
C86: =IF(A86<>0,A86-A85,"") ->  | D86: =IF(A86<>0,2*C86,"") -> 
C150: =IF(A150<>0,A150-A149,"") ->  | D150: =IF(A150<>0,2*C150,"") -> 
C214: =IF(A214<>0,A214-A213,"") ->  | D214: =IF(A214<>0,2*C214,"") -> 
C278: =IF(A278<>0,A278-A277,"") ->  | D278: =IF(A278<>0,2*C278,"") -> 
C342: =IF(A342<>0,A342-A341,"") ->  | D342: =IF(A342<>0,2*C342,"") -> 
C406: =IF(A406<>0,A406-A405,"") ->  | D406: =IF(A406<>0,2*C406,"") -> 
C470: =IF(A470<>0,A470-A469,"") ->  | D470: =IF(A470<>0,2*C470,"") -> 

Sheet sva
A1: Tabellen für s, v und a
D4: Zeit | E4: ax | F4: sx | G4: vx
D5: =t0 -> 0 | F5: =x0 -> 0.1 | G5: =v0 -> 0
D6: =D5+Delta_t -> 0.005 | E6: =-D/m*F5-_r*G5 -> -4.6 | F6: =F5+G5*Delta_t+E6/2*Delta_t^2 -> 0.0999425 | G6: =G5+(-D/m*F5-_r*G5-D/m*F6-_r*G5)/2*Delta_t -> -0.0229933875
D7: 0.01 | E7: -4.585858306 | F7: 0.09977020983 | G7: -0.04590286566
D8: 0.015 | E8: -4.56647822 | F8: 0.09948361453 | G8: -0.0687022983
D9: 0.02 | E9: -4.541895119 | F9: 0.09908332935 | G9: -0.0913657411
D10: 0.025 | E10: -4.512150279 | F10: 0.09857009876 | G10: -0.113867471
D11: 0.03 | E11: -4.477290808 | F11: 0.09794479527 | G11: -0.1361820151
D12: 0.035 | E12: -4.437369575 | F12: 0.09720841808 | G12: -0.1582841796
D13: 0.04 | E13: -4.392445142 | F13: 0.09636209162 | G13: -0.1801490778
D14: 0.045 | E14: -4.342581675 | F14: 0.09540706396 | G14: -0.201752158
D15: 0.05 | E15: -4.287848863 | F15: 0.09434470506 | G15: -0.223069231
D16: 0.055 | E16: -4.228321817 | F16: 0.09317650488 | G16: -0.2440764971
D17: 0.06 | E17: -4.164080976 | F17: 0.09190407138 | G17: -0.2647505721
D18: 0.065 | E18: -4.095211997 | F18: 0.09052912837 | G18: -0.2850685136
D19: 0.07 | E19: -4.021805648 | F19: 0.08905351323 | G19: -0.3050078461
D20: 0.075 | E20: -3.943957686 | F20: 0.08747917453 | G20: -0.3245465856
D21: 0.08 | E21: -3.861768735 | F21: 0.08580816949 | G21: -0.3436632637
D22: 0.085 | E22: -3.775344165 | F22: 0.08404266137 | G22: -0.3623369511
D23: 0.09 | E23: -3.684793947 | F23: 0.08218491669 | G23: -0.3805472802
D24: 0.095 | E24: -3.590232528 | F24: 0.08023730238 | G24: -0.3982744672
D25: 0.1 | E25: -3.491778676 | F25: 0.07820228281 | G25: -0.4154993333
D26: 0.105 | E26: -3.389555343 | F26: 0.0760824167 | G26: -0.4322033254
D27: 0.11 | E27: -3.283689506 | F27: 0.07388035396 | G27: -0.4483685358
D28: 0.115 | E28: -3.174312014 | F28: 0.07159883238 | G28: -0.4639777208
D29: 0.12 | E29: -3.061557429 | F29: 0.06924067431 | G29: -0.4790143198
D30: 0.125 | E30: -2.945563858 | F30: 0.06680878316 | G30: -0.4934624716
D31: 0.13 | E31: -2.82647279 | F31: 0.06430613989 | G31: -0.5073070316
D32: 0.135 | E32: -2.704428919 | F32: 0.06173579937 | G32: -0.520533587
D33: 0.14 | E33: -2.579579978 | F33: 0.05910088669 | G33: -0.533128472
D34: 0.145 | E34: -2.452076552 | F34: 0.05640459337 | G34: -0.545078781
D35: 0.15 | E35: -2.322071905 | F35: 0.05365017357 | G35: -0.5563723822
D36: 0.155 | E36: -2.189721793 | F36: 0.05084094013 | G36: -0.5669979294
D37: 0.16 | E37: -2.055184281 | F37: 0.04798026068 | G37: -0.5769448726
D38: 0.165 | E38: -1.918619555 | F38: 0.04507155358 | G38: -0.5862034691
D39: 0.17 | E39: -1.78018973 | F39: 0.04211828386 | G39: -0.5947647917
D40: 0.175 | E40: -1.640058662 | F40: 0.03912395917 | G40: -0.6026207377
D41: 0.18 | E41: -1.498391753 | F41: 0.03609212558 | G41: -0.6097640356
D42: 0.185 | E42: -1.355355759 | F42: 0.03302636346 | G42: -0.6161882517
D43: 0.19 | E43: -1.211118593 | F43: 0.02993028322 | G43: -0.6218877955
D44: 0.195 | E44: -1.06584913 | F44: 0.02680752112 | G44: -0.6268579235
D45: 0.2 | E45: -0.91971701 | F45: 0.02366173504 | G45: -0.6310947431
D46: 0.205 | E46: -0.7728924405 | F46: 0.02049660017 | G46: -0.6345952148
D47: 0.21 | E47: -0.6255460005 | F47: 0.01731580477 | G47: -0.6373571534
D48: 0.215 | E48: -0.4778484429 | F48: 0.0141230459 | G48: -0.6393792283
D49: 0.22 | E49: -0.3299704973 | F49: 0.01092202513 | G49: -0.6406609634
D50: 0.225 | E50: -0.1820826742 | F50: 0.007716444278 | G50: -0.641202735
D51: 0.23 | E51: -0.03435506932 | F51: 0.004510001165 | G51: -0.6410057694
D52: 0.235 | E52: 0.1130428311 | F52: 0.001306385354 | G52: -0.6400721394
D53: 0.24 | E53: 0.2599423434 | F53: -0.001890726064 | G53: -0.6384047599
D54: 0.245 | E54: 0.4061757789 | F54: -0.005077672666 | G54: -0.6360073821
D55: 0.25 | E55: 0.5515766337 | F55: -0.008250814869 | G55: -0.6328845876
D56: 0.255 | E56: 0.6959797777 | F56: -0.01140653806 | G56: -0.6290417805
D57: 0.26 | E57: 0.839221641 | F57: -0.01454125669 | G57: -0.6244851797
D58: 0.265 | E58: 0.9811403976 | F58: -0.01765141833 | G58: -0.6192218091
D59: 0.27 | E59: 1.121576148 | F59: -0.02073350768 | G59: -0.6132594881
D60: 0.275 | E60: 1.260371097 | F60: -0.02378405048 | G60: -0.6066068202
D61: 0.28 | E61: 1.397369732 | F61: -0.02679961746 | G61: -0.5992731813
D62: 0.285 | E62: 1.532418994 | F62: -0.02977682813 | G62: -0.5912687071
D63: 0.29 | E63: 1.665368447 | F63: -0.03271235456 | G63: -0.5826042793
D64: 0.295 | E64: 1.796070449 | F64: -0.03560292507 | G64: -0.5732915115
D65: 0.3 | E65: 1.924380309 | F65: -0.03844532788 | G65: -0.5633427336
D66: 0.305 | E66: 2.050156449 | F66: -0.04123641459 | G66: -0.5527709764
D67: 0.31 | E67: 2.173260559 | F67: -0.04397310372 | G67: -0.5415899544
D68: 0.315 | E68: 2.293557748 | F68: -0.04665238402 | G68: -0.5298140484
D69: 0.32 | E69: 2.410916689 | F69: -0.0492713178 | G69: -0.5174582876
D70: =D69+Delta_t -> 0.325 | E70: =-D/m*F69-_r*G69 -> 2.525209763 | F70: =F69+G69*Delta_t+E70/2*Delta_t^2 -> -0.05182704411 | G70: =G69+(-D/m*F69-_r*G69-D/m*F70-_r*G69)/2*Delta_t -> -0.5045383302
D71: 0.33 | E71: 2.636313194 | F71: -0.05431678185 | G71: -0.4910704444
D72: 0.335 | E72: 2.744107187 | F72: -0.05673783273 | G72: -0.4770714876
D73: 0.34 | E73: 2.84847605 | F73: -0.05908758422 | G73: -0.4625588859
D74: 0.345 | E74: 2.949308317 | F74: -0.0613635123 | G74: -0.4475506126
D75: 0.35 | E75: 3.046496872 | F75: -0.06356318415 | G75: -0.432065166
D76: 0.355 | E76: 3.139939054 | F76: -0.06568426074 | G76: -0.4161215469
D77: 0.36 | E77: 3.229536768 | F77: -0.06772449927 | G77: -0.3997392357
D78: 0.365 | E78: 3.315196584 | F78: -0.06968175549 | G78: -0.3829381683
D79: 0.37 | E79: 3.396829837 | F79: -0.07155398596 | G79: -0.3657387126
D80: 0.375 | E80: 3.47435271 | F80: -0.07333925011 | G80: -0.3481616437
D81: 0.38 | E81: 3.547686327 | F81: -0.07503571225 | G81: -0.3302281189
D82: 0.385 | E82: 3.616756823 | F82: -0.07664164338 | G82: -0.3119596527
D83: 0.39 | E83: 3.681495422 | F83: -0.07815542295 | G83: -0.2933780909
D84: 0.395 | E84: 3.741838501 | F84: -0.07957554043 | G84: -0.2745055849
D85: 0.4 | E85: 3.797727652 | F85: -0.08090059676 | G85: -0.2553645652
D86: 0.405 | E86: 3.849109733 | F86: -0.08212930571 | G86: -0.235977715
D87: 0.41 | E87: 3.89593692 | F87: -0.08326049507 | G87: -0.2163679436
D88: 0.415 | E88: 3.938166745 | F88: -0.08429310771 | G88: -0.1965583594
D89: 0.42 | E89: 3.975762134 | F89: -0.08522620248 | G89: -0.1765722428
D90: 0.425 | E90: 4.008691435 | F90: -0.08605895505 | G90: -0.1564330191
D91: 0.43 | E91: 4.036928442 | F91: -0.08679065854 | G91: -0.136164231
D92: 0.435 | E92: 4.060452408 | F92: -0.08742072404 | G92: -0.1157895114
D93: 0.44 | E93: 4.079248061 | F93: -0.08794868099 | G93: -0.09533255609
D94: 0.445 | E94: 4.093305604 | F94: -0.08837417746 | G94: -0.07481709597
D95: 0.45 | E95: 4.102620711 | F95: -0.08869698018 | G95: -0.05426687011
D96: 0.455 | E96: 4.107194523 | F96: -0.0889169746 | G96: -0.03370559813
D97: 0.46 | E97: 4.10703363 | F97: -0.08903416467 | G97: -0.01315695312
D98: 0.465 | E98: 4.102150051 | F98: -0.08904867256 | G98: 0.007355465541
D99: 0.47 | E99: 4.092561205 | F99: -0.08896073821 | G99: 0.02780815912
D100: 0.475 | E100: 4.078289878 | F100: -0.08877071879 | G100: 0.04817775627
D101: 0.48 | E101: 4.059364186 | F101: -0.08847908796 | G101: 0.06844103966
D102: 0.485 | E102: 4.035817526 | F102: -0.08808643504 | G102: 0.08857497221
D103: 0.49 | E103: 4.007688526 | F103: -0.08759346408 | G103: 0.1085567232
D104: 0.495 | E104: 3.975020986 | F104: -0.0870009927 | G104: 0.1283636939
D105: 0.5 | E105: 3.937863817 | F105: -0.08630995093 | G105: 0.1479735432
D106: 0.505 | E106: 3.896270971 | F106: -0.08552137983 | G106: 0.1673642124
D107: 0.51 | E107: 3.850301366 | F107: -0.08463643 | G107: 0.18651395
D108: 0.515 | E108: 3.800018805 | F108: -0.08365636001 | G108: 0.2054013359
D109: 0.52 | E109: 3.745491893 | F109: -0.08258253468 | G109: 0.2240053055
D110: 0.525 | E110: 3.686793943 | F110: -0.08141642323 | G110: 0.2423051724
D111: 0.53 | E111: 3.624002883 | F111: -0.08015959734 | G111: 0.2602806518
D112: 0.535 | E112: 3.557201152 | F112: -0.07881372906 | G112: 0.2779118827
D113: 0.54 | E113: 3.486475595 | F113: -0.0773805887 | G113: 0.2951794496
D114: 0.545 | E114: 3.411917356 | F114: -0.07586204249 | G114: 0.3120644035
D115: 0.55 | E115: 3.333621753 | F115: -0.0742600502 | G115: 0.3285482832
D116: 0.555 | E116: 3.251688168 | F116: -0.07257666268 | G116: 0.3446131344
D117: 0.56 | E117: 3.166219916 | F117: -0.07081401926 | G117: 0.36024153
D118: 0.565 | E118: 3.077324121 | F118: -0.06897434506 | G118: 0.3754165881
D119: 0.57 | E119: 2.985111579 | F119: -0.06705994822 | G119: 0.3901219904
D120: 0.575 | E120: 2.889696623 | F120: -0.06507321706 | G120: 0.4043419994
D121: 0.58 | E121: 2.791196985 | F121: -0.0630166171 | G121: 0.4180614753
D122: 0.585 | E122: 2.689733649 | F122: -0.06089268806 | G122: 0.4312658917
D123: 0.59 | E123: 2.585430705 | F123: -0.05870404071 | G123: 0.4439413508
D124: 0.595 | E124: 2.478415197 | F124: -0.05645335377 | G124: 0.4560745978
D125: 0.6 | E125: 2.368816975 | F125: -0.05414337057 | G125: 0.4676530346
D126: 0.605 | E126: 2.256768529 | F126: -0.05177689579 | G126: 0.4786647326
D127: 0.61 | E127: 2.14240484 | F127: -0.04935679207 | G127: 0.4890984449
D128: 0.615 | E128: 2.025863213 | F128: -0.04688597655 | G128: 0.4989436172
D129: 0.62 | E129: 1.907283113 | F129: -0.04436741743 | G129: 0.5081903985
D130: 0.625 | E130: 1.786806002 | F130: -0.04180413036 | G130: 0.5168296505
D131: 0.63 | E131: 1.664575171 | F131: -0.03919917492 | G131: 0.5248529564
D132: 0.635 | E132: 1.540735568 | F132: -0.03655565094 | G132: 0.532252629
D133: 0.64 | E133: 1.415433629 | F133: -0.03387669487 | G133: 0.5390217172
D134: =D133+Delta_t -> 0.645 | E134: =-D/m*F133-_r*G133 -> 1.288817106 | F134: =F133+G133*Delta_t+E134/2*Delta_t^2 -> -0.03116547607 | G134: =G133+(-D/m*F133-_r*G133-D/m*F134-_r*G133)/2*Delta_t -> 0.5451540126
D135: 0.65 | E135: 1.161034893 | F135: -0.02842519308 | G135: 0.5506440545
D136: 0.655 | E136: 1.032236854 | F136: -0.02565906984 | G136: 0.5554871346
D137: 0.66 | E137: 0.9025736455 | F137: -0.022870352 | G137: 0.5596793003
D138: 0.665 | E138: 0.7721965418 | F138: -0.02006230304 | G138: 0.5632173574
D139: 0.67 | E139: 0.6412572612 | F139: -0.01723820054 | G139: 0.5660988719
D140: 0.675 | E140: 0.5099077888 | F140: -0.01440133233 | G140: 0.568322171
D141: 0.68 | E141: 0.3783002018 | F141: -0.01155499272 | G141: 0.5698863429
D142: 0.685 | E142: 0.2465864938 | F142: -0.008702478678 | G142: 0.5707912363
D143: 0.69 | E143: 0.1149184011 | F143: -0.005847086017 | G143: 0.5710374581
D144: 0.695 | E144: -0.01655277229 | F144: -0.002992105636 | G144: 0.5706263715
D145: 0.7 | E145: -0.1476763265 | F145: -0.0001408197324 | G145: 0.569560092
D146: 0.705 | E146: -0.2783023383 | F146: 0.002703501948 | G146: 0.5678414833
D147: 0.71 | E147: -0.4082818313 | F147: 0.005537605842 | G147: 0.5654741522
D148: 0.715 | E148: -0.5374669449 | F148: 0.008358258267 | G148: 0.5624624425
D149: 0.72 | E149: -0.6657111015 | F149: 0.01116224909 | G149: 0.558811428
D150: 0.725 | E150: -0.7928691722 | F150: 0.01394639537 | G150: 0.5545269053
D151: 0.73 | E151: -0.9187976395 | F151: 0.01670754492 | G151: 0.5496153849
D152: 0.735 | E152: -1.043354759 | F152: 0.01944257991 | G152: 0.5440840821
D153: 0.74 | E153: -1.166400717 | F153: 0.02214842031 | G153: 0.5379409069
D154: 0.745 | E154: -1.287797788 | F154: 0.02482202738 | G154: 0.5311944531
D155: 0.75 | E155: -1.407410486 | F155: 0.02746040701 | G155: 0.5238539871
D156: 0.755 | E156: -1.525105716 | F156: 0.03006061312 | G156: 0.5159294348
D157: 0.76 | E157: -1.640752921 | F157: 0.03261975089 | G157: 0.5074313693
D158: 0.765 | E158: -1.754224225 | F158: 0.03513497993 | G158: 0.4983709969
D159: 0.77 | E159: -1.865394575 | F159: 0.03760351748 | G159: 0.4887601422
D160: 0.775 | E160: -1.974141875 | F160: 0.04002264142 | G160: 0.4786112335
D161: 0.78 | E161: -2.080347122 | F161: 0.04238969325 | G161: 0.467937287
D162: 0.785 | E162: -2.183894533 | F162: 0.044702081 | G162: 0.4567518897
D163: 0.79 | E163: -2.284671671 | F163: 0.04695728205 | G163: 0.4450691832
D164: 0.795 | E164: -2.382569566 | F164: 0.04915284585 | G164: 0.4329038456
D165: 0.8 | E165: -2.477482832 | F165: 0.05128639654 | G165: 0.4202710731
D166: 0.805 | E166: -2.569309778 | F166: 0.05335563554 | G166: 0.4071865617
D167: 0.81 | E167: -2.657952516 | F167: 0.05535834394 | G167: 0.3936664877
D168: 0.815 | E168: -2.743317065 | F168: 0.05729238491 | G168: 0.3797274876
D169: 0.82 | E169: -2.82531345 | F169: 0.05915570593 | G169: 0.3653866385
D170: 0.825 | E170: -2.903855792 | F170: 0.06094634093 | G170: 0.3506614365
D171: 0.83 | E171: -2.978862401 | F171: 0.06266241233 | G171: 0.3355697763
D172: 0.835 | E172: -3.050255855 | F172: 0.06430213301 | G172: 0.3201299291
D173: 0.84 | E173: -3.117963083 | F173: 0.06586380812 | G173: 0.304360521
D174: 0.845 | E174: -3.181915434 | F174: 0.06734583678 | G174: 0.2882805106
D175: 0.85 | E175: -3.242048747 | F175: 0.06874671373 | G175: 0.271909166
D176: 0.855 | E176: -3.298303414 | F176: 0.07006503076 | G176: 0.2552660425
D177: 0.86 | E177: -3.350624436 | F177: 0.07129947817 | G177: 0.2383709588
D178: 0.865 | E178: -3.398961475 | F178: 0.07244884595 | G178: 0.2212439742
D179: 0.87 | E179: -3.443268901 | F179: 0.07351202496 | G179: 0.2039053641
D180: 0.875 | E180: -3.48350583 | F180: 0.07448800795 | G180: 0.1863755969
D181: 0.88 | E181: -3.519636164 | F181: 0.07537589049 | G181: 0.1686753096
D182: 0.885 | E182: -3.551628617 | F182: 0.07617487168 | G182: 0.1508252836
D183: 0.89 | E183: -3.579456739 | F183: 0.07688425488 | G183: 0.1328464209
D184: 0.895 | E184: -3.603098935 | F184: 0.07750344825 | G184: 0.114759719
D185: 0.9 | E185: -3.622538479 | F185: 0.07803196512 | G185: 0.09658624713
D186: 0.905 | E186: -3.637763519 | F186: 0.07846942431 | G186: 0.07834712173
D187: 0.91 | E187: -3.648767079 | F187: 0.07881555033 | G187: 0.06006348184
D188: 0.915 | E188: -3.655547056 | F188: 0.0790701734 | G188: 0.0417564649
D189: 0.92 | E189: -3.658106209 | F189: 0.0792332294 | G189: 0.02344718242
D190: 0.925 | E190: -3.656452143 | F190: 0.07930475966 | G190: 0.005156695724
D191: 0.93 | E191: -3.650597292 | F191: 0.07928491067 | G191: -0.0130940081
D192: 0.935 | E192: -3.640558887 | F192: 0.07917393364 | G192: -0.03128404018
D193: 0.94 | E193: -3.626358927 | F193: 0.07897218395 | G193: -0.0493926336
D194: 0.945 | E194: -3.608024145 | F194: 0.07868012048 | G194: -0.06739916703
D195: 0.95 | E195: -3.585585959 | F195: 0.07829830483 | G195: -0.08528318802
D196: 0.955 | E196: -3.559080428 | F196: 0.07782740038 | G196: -0.1030244361
D197: 0.96 | E197: -3.528548199 | F197: 0.07726817135 | G197: -0.1206028658
D198: =D197+Delta_t -> 0.965 | E198: =-D/m*F197-_r*G197 -> -3.494034449 | F198: =F197+G197*Delta_t+E198/2*Delta_t^2 -> 0.07662148159 | G198: =G197+(-D/m*F197-_r*G197-D/m*F198-_r*G197)/2*Delta_t -> -0.1379986687
D199: 0.97 | E199: -3.455588819 | F199: 0.07588829338 | G199: -0.1551922962
D200: 0.975 | E200: -3.413265348 | F200: 0.07506966609 | G200: -0.1721644808
D201: 0.98 | E201: -3.3671224 | F201: 0.07416675465 | G201: -0.188896258
D202: 0.985 | E202: -3.317222585 | F202: 0.07318080808 | G202: -0.205368987
... 4803 more rows
